bitfinex/quotes_ETHUSD_20240731
["timestamp","ask_amount","ask_price","bid_price","bid_amount"]
[1722425653121,2.20771583,3324.7,3324.5,35.0]
[1722425653308,2.20721856,3324.7,3324.5,35.0]
[1722425654223,2.4168,3325.0,3324.3,2.4237]
[1722425654422,2.20718922,3324.6,3324.3,2.4237]
[1722425656647,2.20718922,3324.7,3324.3,2.4237]
[1722425656943,2.664,3325.6,3324.2,2.3606]
[1722425656944,2.20718922,3324.8,3324.2,2.3606]
[1722425657155,2.20718922,3324.9,3324.3,37.3606]
[1722425657509,2.207006,3324.8,3324.3,37.3606]
[1722425658055,2.207006,3324.8,3324.4,2.420753]
[1722425658204,2.207006,3324.9,3324.5,3.04901288]
[1722425658410,2.207006,3325.0,3324.7,2.2659]
[1722425658771,2.207006,3325.1,3324.7,37.2659]
[1722425658911,2.207006,3325.1,3324.8,0.060147]
[1722425659523,2.207006,3325.0,3324.7,37.2659]
[1722425659820,2.207006,3324.9,3324.7,37.2659]
[1722425660062,2.207006,3324.9,3324.7,35.0]
[1722425660236,2.207006,3325.0,3324.7,35.0]
[1722425660453,2.207006,3324.9,3324.7,35.0]
[1722425660661,2.207006,3324.8,3324.4,2.2659]
[1722425660807,2.2070275,3324.8,3324.4,2.2659]
[1722425661247,2.2070275,3324.8,3324.5,0.2]
[1722425661844,2.2070275,3324.7,3324.5,0.2]
[1722425664146,2.2077581,3324.7,3324.5,0.2]
[1722425664520,2.2077581,3324.6,3324.5,0.2]
[1722425665161,2.2077581,3324.6,3324.5,35.2]
[1722425665363,2.2077581,3324.6,3324.5,35.4]
[1722425665724,2.2077581,3324.7,3324.5,35.4]
[1722425666226,2.2077581,3324.6,3324.5,35.4]
[1722425667158,2.2077581,3324.6,3324.5,0.4]
[1722425667481,3.06696287,3324.6,3324.5,0.4]
[1722425668146,0.45819581,3324.6,3324.5,0.4]
[1722425669669,0.45819581,3324.6,3324.5,0.6]
[1722425671371,2.60942464,3324.6,3324.5,0.6]
[1722425672527,3.12869575,3324.9,3324.5,0.6]
[1722425672729,3.12869575,3324.8,3324.5,0.6]
[1722425673166,2.3771,3324.6,3324.5,0.6]
[1722425673327,5.50579575,3324.6,3324.5,0.6]
[1722425673534,3.19407958,3324.6,3324.5,0.6]
[1722425674944,0.81697958,3324.6,3324.5,0.6]
[1722425675150,3.13292594,3324.7,3324.5,0.6]
[1722425676432,3.13292594,3324.6,3324.5,0.6]
[1722425676633,3.13292594,3324.7,3324.5,0.6]
[1722425676833,3.68721853,3324.7,3324.5,0.6]
[1722425677251,3.13292594,3324.6,3324.5,0.6]
[1722425677574,0.55429259,3324.7,3324.5,0.6]
[1722425678144,2.61096217,3324.6,3324.5,0.6]
[1722425679477,2.2872,3324.6,3324.5,0.6]
[1722425679666,5.42012594,3324.6,3324.5,0.6]
[1722425680121,2.2872,3324.6,3324.5,0.6]
[1722425680322,5.42070961,3324.6,3324.5,0.6]
[1722425680522,3.09567096,3324.6,3324.5,0.6]
[1722425681492,6.22902355,3324.6,3324.5,0.6]
[1722425682588,3.09567096,3324.6,3324.5,0.6]
[1722425683919,0.80847096,3324.6,3324.5,0.6]
[1722425684096,2.664,3324.7,3324.5,0.6]
[1722425685088,2.2973,3324.8,3324.5,0.6]
[1722425685089,3.13306519,3324.8,3324.5,0.6]
[1722425685306,3.13306519,3324.7,3324.5,0.6]
[1722425685877,2.61070598,3324.6,3324.5,0.6]
[1722425686071,3.13306519,3324.9,3324.5,0.6]
[1722425686269,2.3149,3324.7,3324.5,0.6]
[1722425686477,3.13306519,3324.6,3324.5,0.6]
[1722425690109,2.61076679,3324.6,3324.5,0.6]
[1722425690328,3.13306519,3324.9,3324.5,0.6]
[1722425690494,3.13306519,3324.8,3324.5,0.6]
[1722425691215,1.11,3324.6,3324.5,0.6]
[1722425695893,6.63456519,3324.6,3324.5,0.6]
[1722425696321,3.5015,3324.6,3324.5,0.6]
[1722425697135,4.24376454,3324.6,3324.5,0.6]
[1722425697283,1.11,3324.6,3324.5,0.6]
[1722425697485,4.24376454,3324.6,3324.5,0.6]
[1722425697682,4.66814099,3324.6,3324.5,0.6]
[1722425698095,1.53437645,3324.6,3324.5,0.6]
[1722425698301,4.66814099,3324.6,3324.5,0.6]
[1722425698524,4.24376454,3324.6,3324.5,0.6]
[1722425699993,6.67856454,3324.6,3324.5,0.6]
[1722425700193,3.5448,3324.6,3324.5,0.6]
[1722425700391,7.0948,3324.6,3324.5,0.6]
[1722425700703,7.80428,3324.6,3324.5,0.6]
[1722425705257,7.25428,3324.6,3324.5,0.6]
[1722425707892,7.25428,3324.6,3323.6,2.28]
[1722425708093,2.21040902,3323.7,3323.6,2.28]
[1722425709743,1.11,3323.8,3323.6,2.28]
[1722425709922,2.21049755,3323.7,3323.6,2.28]
[1722425710259,2.21049755,3323.7,3323.6,2.508]
[1722425710634,2.21049755,3323.8,3323.6,2.508]
[1722425711951,2.21049755,3324.0,3323.6,2.508]
[1722425712266,2.21049755,3324.0,3323.7,2.53826778]
[1722425712460,2.21049755,3323.9,3323.7,2.53826778]
[1722425712668,2.21049755,3323.9,3323.8,35.67662678]
[1722425713163,2.21099379,3323.9,3323.8,35.67662678]
[1722425713761,1.11,3324.0,3323.8,35.67662678]
[1722425714341,3.72173641,3324.0,3323.8,35.67662678]
[1722425715246,3.72173641,3324.0,3323.7,2.4781]
[1722425715458,1.11,3323.8,3323.6,4.0]
[1722425715620,2.21123955,3323.7,3323.6,4.0]
[1722425715820,1.11,3323.8,3323.6,4.0]
[1722425716056,1.11,3323.8,3323.4,37.4677]
[1722425716353,2.61173641,3323.9,3323.4,37.4677]
[1722425716354,3.32124671,3323.6,3323.4,40.51671288]
[1722425719076,2.21124671,3323.7,3323.5,2.4677]
[1722425719248,2.21124671,3323.9,3323.5,2.4677]
[1722425719569,1.11,3324.1,3323.5,2.4677]
[1722425719875,1.11,3324.1,3323.7,2.4677]
[1722425719876,2.21111345,3323.9,3323.7,2.4677]
[1722425721772,2.21111345,3324.0,3323.7,2.4677]
[1722425722570,2.21111345,3324.0,3323.8,35.0]
[1722425722932,1.11,3324.1,3323.8,35.0]
[1722425723127,2.21106591,3324.0,3323.8,35.0]
[1722425723329,2.21106591,3324.0,3323.8,38.04901288]
[1722425724780,2.21106591,3323.9,3323.8,3.04901288]
[1722425724990,1.11,3324.1,3323.7,2.4677]
[1722425725155,2.21135524,3323.8,3323.7,37.4677]
[1722425726254,1.11,3323.9,3323.7,37.4677]
[1722425726480,2.21137461,3323.8,3323.7,37.4677]
[1722425726786,2.21143955,3323.8,3323.7,40.51671288]
[1722425728347,2.21143955,3323.8,3323.7,5.51671288]
[1722425728543,2.21143955,3323.8,3323.7,2.4677]
[1722425728889,2.21143955,3323.8,3323.7,37.4677]
[1722425729460,1.11,3323.9,3323.7,37.4677]
[1722425729646,2.21144956,3323.8,3323.7,37.4677]
[1722425730255,3.32144956,3324.1,3323.7,37.4677]
[1722425730496,1.11,3324.3,3323.9,2.3889]
[1722425730673,2.21144956,3324.5,3324.0,0.0601608]
[1722425730846,2.21144956,3324.5,3324.1,2.3889]
[1722425731043,2.21144956,3324.5,3324.2,0.24490608]
[1722425732364,2.21144956,3324.5,3324.3,35.0]
[1722425732744,1.11,3324.6,3324.3,35.0]
[1722425732950,2.21021758,3324.5,3324.3,35.0]
[1722425733448,2.21021758,3324.6,3324.4,2.4354]
[1722425733684,2.21021758,3324.7,3324.5,3.04901288]
[1722425735795,2.21021758,3324.7,3324.4,2.49555453]
[1722425735953,2.21021758,3324.7,3324.4,37.49555453]
[1722425736152,2.20897726,3324.7,3324.4,37.49555453]
[1722425736451,3.31897726,3324.8,3324.4,37.4354]
[1722425737051,3.31897726,3324.8,3324.5,0.06015363]
[1722425737244,2.20867981,3324.7,3324.5,3.10916651]
[1722425737445,2.20867981,3324.7,3324.5,3.04901288]
[1722425737694,3.31867981,3324.8,3324.5,3.04901288]
[1722425738689,1.11,3324.8,3324.5,3.04901288]
[1722425738905,3.31867981,3324.8,3324.5,3.04901288]
[1722425739052,3.31867981,3324.8,3324.4,2.4354]
[1722425739699,3.31789922,3324.8,3324.4,2.4354]
[1722425740296,1.11,3324.6,3324.4,2.4354]
[1722425745759,1.11,3324.8,3324.4,2.4354]
[1722425750499,3.31693184,3324.8,3324.4,2.4354]
[1722425750859,1.11,3324.6,3324.1,2.3877]
[1722425751059,1.11,3324.4,3324.1,2.3877]
[1722425751386,1.11,3324.4,3324.1,40.3877]
[1722425751603,1.11,3324.4,3324.1,43.43671288]
[1722425751808,1.11,3324.2,3324.0,4.0]
[1722425752183,3.31693184,3324.2,3324.0,4.0]
[1722425752383,2.20693184,3324.1,3324.0,4.0]
[1722425752724,3.31782834,3324.2,3324.0,4.0]
[1722425753392,2.60799723,3324.1,3323.5,0.4]
[1722425753593,1.11,3323.6,3323.5,0.4]
[1722425753920,1.11,3323.8,3323.5,4.4]
[1722425754511,1.11,3323.8,3323.0,2.4101]
[1722425754721,1.11,3323.8,3323.1,4.0]
[1722425754889,1.11,3323.8,3323.2,38.64101]
[1722425755983,3.31824676,3324.0,3323.3,4.06017198]
[1722425756186,1.11,3324.0,3323.3,4.0]
[1722425757822,1.11,3324.0,3323.4,2.3075]
[1722425758011,1.11,3324.0,3323.5,0.63075]
[1722425759108,1.11,3324.0,3323.5,4.63075]
[1722425759516,3.31828062,3324.0,3323.5,4.63075]
[1722425759677,3.31828062,3324.0,3323.6,35.0]
[1722425761299,1.11,3323.8,3323.6,35.0]
[1722425764713,1.11,3324.0,3323.6,38.04901288]
[1722425766956,1.11,3324.0,3323.7,0.2]
[1722425767522,2.20854204,3324.0,3323.8,35.0]
[1722425767741,1.11,3323.9,3323.8,35.0]
[1722425770231,1.11,3323.9,3323.7,0.2]
[1722425770469,1.67458347,3323.9,3323.7,0.2]
[1722425770847,4.2835332,3323.9,3323.7,0.2]
[1722425771032,1.67458347,3323.9,3323.7,0.4]
[1722425771233,4.2835332,3323.9,3323.7,0.4]
[1722425771539,2.20844994,3323.8,3323.7,0.4]
[1722425771758,3.0,3324.8,3323.7,0.4]
[1722425771759,2.20844994,3324.0,3323.7,0.4]
[1722425771965,3.31844994,3324.2,3323.7,0.4]
[1722425772332,3.31844994,3324.2,3323.8,35.0]
[1722425772636,3.31817227,3324.2,3323.8,35.0]
[1722425772874,2.20817227,3324.2,3323.8,35.0]
[1722425773049,2.20817227,3324.3,3323.9,3.04901288]
[1722425773372,2.20817227,3324.3,3323.7,0.4]
[1722425773547,3.31817227,3324.4,3323.8,0.06016536]
[1722425773945,2.20817227,3324.4,3323.8,0.06016536]
[1722425774173,2.20817227,3324.5,3323.8,0.06016536]
[1722425774755,2.20817227,3324.5,3323.7,0.4]
[1722425774981,2.20817227,3324.5,3323.8,0.451]
[1722425775715,1.11,3324.6,3323.8,0.451]
[1722425775995,2.20825404,3324.5,3323.8,0.451]
[1722425776548,3.31825404,3324.6,3323.8,0.451]
[1722425776752,3.31825404,3324.6,3323.9,4.0]
[1722425776952,3.31825404,3324.6,3323.9,4.4851]
[1722425777856,2.20825404,3324.5,3323.9,4.4851]
[1722425778203,1.11,3324.2,3323.7,0.4]
[1722425778409,1.11,3324.2,3323.8,4.0]
[1722425782573,1.11,3324.0,3323.7,0.4]
[1722425782902,3.31865746,3324.0,3323.7,0.4]
[1722425783688,1.11,3324.0,3323.7,0.4]
[1722425787302,2.2092097,3324.2,3323.7,0.4]
[1722425787303,3.3192097,3324.2,3323.7,0.4]
[1722425787517,1.11,3324.2,3323.7,0.4]
[1722425789417,2.20949698,3324.5,3323.9,2.3523]
[1722425789625,2.20949698,3324.6,3324.0,0.06015947]
[1722425790119,2.20949698,3324.7,3324.0,0.06015947]
[1722425790281,2.20949698,3324.6,3324.0,0.06015947]
[1722425790482,2.20949698,3324.6,3324.0,0.71240542]
[1722425792093,1.11,3324.7,3324.0,0.71240542]
[1722425792293,1.11,3324.7,3324.0,4.71240542]
[1722425792294,2.20949453,3324.6,3324.0,4.71240542]
[1722425792493,2.20973636,3324.6,3324.0,4.71240542]
[1722425793106,2.20973636,3324.7,3324.1,3.0]
[1722425793339,2.20973636,3324.8,3324.2,0.94239663]
[1722425793539,2.20973636,3324.8,3324.3,0.06015611]
[1722425793834,2.20946216,3324.8,3324.3,0.06015611]
[1722425794311,1.11,3324.9,3324.3,4.06015611]
[1722425794312,3.31946216,3324.9,3324.3,4.06015611]
[1722425794511,3.31923527,3324.9,3324.3,4.06015611]
[1722425794713,3.31923527,3324.9,3324.3,4.85439578]
[1722425794923,3.31923527,3324.9,3324.4,2.4785]
[1722425795511,3.31916147,3324.9,3324.4,2.4785]
[1722425795734,3.31916147,3324.7,3324.4,2.4785]
[1722425796037,3.31927988,3324.7,3324.4,2.4785]
[1722425796212,1.11,3324.7,3324.4,3.12635]
[1722425798530,2.20893094,3324.8,3324.4,3.12635]
[1722425798701,2.20893094,3324.9,3324.4,3.12635]
[1722425798906,3.31893094,3325.0,3324.4,3.12635]
[1722425799142,3.31893094,3325.0,3324.5,0.712635]
[1722425800017,3.31844342,3325.0,3324.5,0.712635]
[1722425800363,1.11,3324.8,3324.4,2.4785]
[1722425800869,1.11,3324.6,3324.3,4.0]
[1722425801368,3.31844342,3324.6,3324.5,0.2]
[1722425801964,1.11,3324.6,3324.5,0.2]
[1722425804914,3.31839512,3324.6,3324.5,0.2]
[1722425805121,3.65023463,3324.6,3324.5,0.2]
[1722425805321,3.65023463,3324.6,3324.5,0.4]
[1722425806459,1.44183951,3324.6,3324.5,0.4]
[1722425806615,3.31857032,3324.6,3324.5,0.4]
[1722425807857,1.11,3324.6,3324.5,0.4]
[1722425809658,1.11,3324.6,3324.5,0.6]
[1722425810415,3.7188737,3324.6,3324.5,0.6]
[1722425810730,3.3701,3324.6,3324.5,0.6]
[1722425810934,6.70711,3324.6,3324.5,0.6]
[1722425813520,6.70711,3324.6,3324.5,0.8]
[1722425817765,5.59711,3324.6,3324.5,1.0]
[1722425817995,6.50115329,3324.6,3324.5,1.0]
[1722425818167,1.11,3324.6,3324.5,1.0]
[1722425818530,3.71895912,3324.6,3324.5,1.0]
[1722425818766,1.11,3324.6,3324.5,1.0]
[1722425819552,3.71882831,3324.6,3324.5,1.0]
[1722425820390,1.11,3324.6,3324.5,1.0]
[1722425820555,2.60882831,3324.8,3324.5,1.0]
[1722425820747,3.31825992,3324.7,3324.5,1.0]
[1722425820941,1.11,3324.7,3324.5,1.0]
[1722425821775,3.3184038,3324.7,3324.5,1.0]
[1722425822283,2.2084038,3324.7,3324.5,1.0]
[1722425822492,7.48,3325.2,3324.6,2.3383]
[1722425822798,7.48,3325.2,3324.6,2.67814551]
[1722425822799,3.31801219,3325.1,3324.6,2.67814551]
[1722425822947,1.11,3325.1,3324.7,35.0]
[1722425823143,9.68801219,3325.2,3324.7,35.0]
[1722425823458,2.20801219,3325.2,3324.7,38.04901288]
[1722425823660,2.20801219,3325.3,3324.8,0.06014675]
[1722425823857,2.20801219,3325.4,3324.8,0.06014675]
[1722425824059,2.20801219,3325.4,3324.6,2.67814551]
[1722425824267,2.20801219,3325.4,3324.7,35.0]
[1722425824561,2.20801219,3325.4,3324.8,3.04901288]
[1722425824958,2.20801219,3325.2,3324.8,3.04901288]
[1722425825517,2.20801219,3325.3,3324.8,3.04901288]
[1722425825693,2.2069458,3325.2,3324.8,3.04901288]
[1722425825877,2.2069458,3325.3,3324.9,1.59960384]
[1722425826794,2.2069458,3325.3,3324.6,2.3383]
[1722425827104,2.2069458,3325.4,3324.7,39.0]
[1722425827804,2.2069458,3325.4,3324.8,0.06014915]
[1722425828214,2.2069458,3325.4,3324.7,39.0]
[1722425828370,2.2069458,3325.4,3324.8,3.04901288]
[1722425828996,2.20600386,3325.5,3324.8,3.04901288]
[1722425829244,2.20600386,3325.4,3324.8,3.04901288]
[1722425829622,2.20600386,3325.5,3324.8,3.04901288]
[1722425829791,2.20600386,3325.5,3324.9,1.93944935]
[1722425830934,2.20600386,3325.5,3324.7,4.0]
[1722425832135,0.1468947,3325.7,3324.7,4.0]
[1722425832320,2.20560413,3325.5,3324.7,4.0]
[1722425833208,2.20560413,3325.4,3324.7,4.0]
[1722425833402,2.20560413,3325.3,3324.7,4.0]
[1722425833631,2.20560413,3325.2,3324.7,4.0]
[1722425833834,2.20560413,3325.1,3324.7,4.0]
[1722425834185,2.20560413,3325.0,3324.5,1.0]
[1722425835292,5.0387,3325.0,3324.5,1.0]
[1722425835493,2.2061032,3324.7,3324.5,1.0]
[1722425837538,2.2061032,3324.6,3324.5,1.0]
[1722425838546,0.76446594,3324.9,3324.5,1.0]
[1722425838747,2.20611741,3324.6,3324.5,1.0]
[1722425840746,0.76446594,3324.9,3324.5,1.0]
[1722425840935,3.18632002,3324.8,3324.5,1.0]
[1722425841333,2.20620869,3324.6,3324.5,1.0]
[1722425841871,2.20617817,3324.6,3324.5,1.0]
[1722425842665,2.60604796,3324.7,3324.5,1.0]
[1722425842843,0.31863646,3324.6,3324.5,1.0]
[1722425843463,0.58031659,3324.8,3324.5,1.0]
[1722425843679,2.60611682,3324.7,3324.5,1.0]
[1722425843823,3.18643341,3324.8,3324.5,1.0]
[1722425844165,0.58031659,3324.8,3324.5,1.0]
[1722425844459,2.663,3325.0,3324.5,1.0]
[1722425844634,2.20617586,3324.6,3324.5,1.0]
[1722425845363,3.31618298,3324.6,3324.5,36.0]
[1722425845569,1.11,3324.6,3324.5,36.0]
[1722425845931,1.11,3324.6,3324.5,1.0]
[1722425847743,1.11,3324.6,3324.4,2.2827]
[1722425848262,1.11,3324.6,3324.4,2.51097]
[1722425848486,1.11,3324.8,3324.4,2.51097]
[1722425849165,1.11,3325.0,3324.4,2.51097]
[1722425849570,3.31607987,3325.0,3324.4,2.51097]
[1722425849771,3.31607987,3325.0,3324.5,0.251097]
[1722425850345,1.11,3325.0,3324.5,0.251097]
[1722425850551,3.31607987,3325.0,3324.5,0.251097]
[1722425850864,1.11,3325.0,3324.5,0.251097]
[1722425851585,1.11,3324.8,3324.5,0.251097]
[1722425851947,1.11,3324.8,3324.6,35.0]
[1722425852173,1.11,3324.8,3324.6,38.24901288]
[1722425852603,1.11,3325.0,3324.6,38.24901288]
[1722425852748,1.11,3325.0,3324.7,2.4363]
[1722425853349,2.20596083,3325.3,3324.8,35.0]
[1722425853550,1.11,3325.3,3324.9,3.10916026]
[1722425854096,1.11,3325.3,3324.9,0.06014738]
[1722425854265,1.11,3325.3,3325.0,35.0]
[1722425854591,1.11,3325.1,3324.7,2.4363]
[1722425854811,1.11,3324.8,3324.7,2.4363]
[1722425854945,1.11,3324.8,3324.7,37.4363]
[1722425855262,1.11,3324.8,3324.7,40.48531288]
[1722425856178,1.11,3324.8,3324.7,44.48531288]
[1722425856375,1.11,3324.8,3324.7,9.48531288]
[1722425856595,1.11,3324.8,3324.7,6.4363]
[1722425856895,1.11,3324.8,3324.7,4.0]
[1722425857108,1.11,3324.8,3324.6,0.4]
[1722425858449,2.20598998,3325.0,3324.6,0.4]
[1722425858650,1.11,3324.9,3324.6,0.4]
[1722425858884,1.11,3324.9,3324.6,0.6821]
[1722425859087,1.11,3324.9,3324.7,35.0]
[1722425859294,1.11,3324.9,3324.6,0.6821]
[1722425860394,1.11,3324.8,3324.7,0.2]
[1722425861251,3.31602667,3324.8,3324.7,0.2]
[1722425861449,3.93010267,3324.8,3324.7,0.2]
[1722425861692,4.04963701,3324.8,3324.7,0.2]
[1722425861902,1.44160267,3324.8,3324.7,0.2]
[1722425862086,1.11,3324.8,3324.7,0.2]
[1722425862453,3.71798409,3324.8,3324.7,0.2]
[1722425864093,1.11,3324.8,3324.7,0.2]
[1722425864397,1.11,3324.8,3324.7,0.4]
[1722425867697,3.71941624,3324.8,3324.7,0.4]
[1722425868353,1.11,3324.8,3324.7,0.4]
[1722425868667,3.71933451,3324.8,3324.7,0.4]
[1722425868867,4.09126796,3324.8,3324.7,0.4]
[1722425869073,3.71933451,3324.8,3324.7,0.4]
[1722425871098,2.60933451,3324.8,3324.7,0.4]
[1722425871305,3.71933451,3324.8,3324.7,0.4]
[1722425871603,1.11,3324.8,3324.7,0.4]
[1722425872389,3.71963603,3324.8,3324.7,0.4]
[1722425872702,1.11,3324.8,3324.7,0.4]
[1722425872906,3.71963603,3324.8,3324.7,0.4]
[1722425873807,2.60963603,3324.8,3324.7,0.4]
[1722425874108,2.20927063,3324.8,3324.7,2.8523]
[1722425874407,3.31927063,3324.9,3324.7,3.17753]
[1722425874917,3.31942928,3324.9,3324.7,3.17753]
[1722425875082,2.20943128,3324.8,3324.7,2.8523]
[1722425875285,1.11,3324.9,3324.7,2.8523]
[1722425875468,3.7198907,3324.9,3324.7,2.8523]
[1722425875889,2.20973078,3324.8,3324.7,2.8523]
[1722425876096,1.11,3324.9,3324.7,2.8523]
[1722425876914,0.11,3324.9,3324.7,2.8523]
[1722425877288,2.7198907,3324.9,3324.7,2.8523]
[1722425877710,0.11,3324.9,3324.7,2.8523]
[1722425877910,1.11,3324.8,3324.7,2.8523]
[1722425880826,1.11,3324.8,3324.7,0.4]
[1722425881045,1.46497,3324.8,3324.7,0.4]
[1722425881638,4.59602329,3324.8,3324.7,0.4]
[1722425884539,1.46497,3324.8,3324.7,0.4]
[1722425884896,4.59602329,3324.8,3324.7,0.4]
[1722425885097,1.46497,3324.8,3324.7,0.4]
[1722425886438,0.35497,3324.8,3324.7,0.4]
[1722425886623,1.11,3324.8,3324.7,0.4]
[1722425886823,4.24405377,3324.8,3324.7,0.4]
[1722425887219,1.11,3324.8,3324.7,0.4]
[1722425887418,3.72140012,3324.8,3324.7,0.4]
[1722425887917,1.11,3324.8,3324.7,0.4]
[1722425894575,1.11,3324.8,3324.1,2.386]
[1722425894774,2.21092299,3324.3,3324.2,0.2386]
[1722425894927,2.21092299,3324.3,3324.1,2.386]
[1722425896084,3.32092299,3324.4,3324.1,2.386]
[1722425896427,2.21092299,3324.3,3324.1,2.386]
[1722425897645,1.11,3324.4,3324.1,2.386]
[1722425897979,2.21111987,3324.3,3324.1,2.386]
[1722425898147,2.21111987,3324.3,3324.1,2.6246]
[1722425899462,2.21111987,3324.4,3324.1,2.6246]
[1722425899669,1.11,3324.8,3324.1,2.6246]
[1722425899670,2.21111987,3324.5,3324.2,0.0601589]
[1722425899869,2.21111987,3324.7,3324.3,2.4825]
[1722425900181,19.45,3326.1,3324.5,2.4825]
[1722425900182,2.21111987,3324.9,3324.5,2.4825]
[1722425900360,2.21111987,3324.9,3324.4,0.25426589]
[1722425900361,2.21111987,3324.9,3324.7,2.3875]
[1722425900877,3.72188535,3325.2,3324.7,2.3875]
[1722425900878,2.21111987,3324.8,3324.7,2.3875]
[1722425901083,2.21137694,3324.8,3324.7,2.63226514]
[1722425902963,2.21137694,3324.9,3324.7,2.83226514]
[1722425903591,3.72218901,3325.2,3324.7,2.83226514]
[1722425903592,2.21137694,3325.0,3324.7,2.83226514]
[1722425903938,1.11,3325.2,3324.7,2.83226514]
[1722425903939,2.21137694,3324.8,3324.7,2.83226514]
[1722425904281,1.11,3325.2,3324.7,2.83226514]
[1722425904441,2.21098091,3324.9,3324.8,0.28322651]
[1722425904970,2.21098091,3325.0,3324.8,0.28322651]
[1722425905272,2.21098091,3325.0,3324.9,2.2984]
[1722425905679,2.21098091,3325.0,3324.9,2.35854817]
[1722425905982,2.21098091,3325.2,3324.9,2.2984]
[1722425906885,2.21098091,3325.1,3324.9,2.2984]
[1722425907385,1.11,3325.0,3324.9,2.2984]
[1722425907586,3.32002358,3325.0,3324.9,2.2984]
[1722425910718,1.11,3325.0,3324.7,0.2]
[1722425910893,3.31958622,3325.0,3324.7,0.2]
[1722425911184,1.11,3324.8,3324.7,0.2]
[1722425911346,3.31958622,3324.8,3324.7,0.2]
[1722425913384,1.11,3324.8,3324.7,0.2]
[1722425914983,3.31969047,3325.0,3324.7,0.2]
[1722425915550,1.11,3325.0,3324.8,2.4904]
[1722425915873,1.11,3325.0,3324.8,2.75944]
[1722425915874,2.20954054,3325.0,3324.8,2.75944]
[1722425916083,2.20954054,3324.9,3324.8,2.75944]
[1722425916378,2.20954054,3325.0,3324.8,2.4904]
[1722425916690,1.11,3325.2,3324.8,2.4904]
[1722425916850,2.20954628,3325.0,3324.8,2.4904]
[1722425917559,1.11,3325.2,3324.8,2.4904]
[1722425917784,2.20946349,3325.0,3324.8,2.4904]
[1722425917947,2.20946349,3325.0,3324.8,2.75944]
[1722425918355,1.11,3325.2,3324.8,2.75944]
[1722425918555,2.20942258,3325.0,3324.8,2.81958823]
[1722425918865,2.20942258,3325.1,3324.8,2.75944]
[1722425919082,2.20942258,3325.1,3324.9,0.295944]
[1722425919399,3.31942258,3325.0,3324.7,0.2]
[1722425919894,2.20942258,3324.9,3324.7,0.2]
[1722425920502,1.11,3324.8,3324.7,0.2]
[1722425921302,3.72009576,3324.8,3324.7,0.2]
[1722425921465,4.09210534,3324.8,3324.7,0.2]
[1722425922073,3.72009576,3324.8,3324.7,0.2]
[1722425922282,1.11,3324.8,3324.7,0.2]
[1722425923002,3.31953851,3324.8,3324.7,0.2]
[1722425923172,1.11,3324.8,3324.7,0.2]
[1722425923803,3.72009576,3324.8,3324.7,0.2]
[1722425924202,3.72025979,3324.8,3324.7,0.2]
[1722425925311,1.11,3324.8,3324.7,0.2]
[1722425925601,3.72025979,3324.8,3324.7,0.2]
[1722425925803,1.11,3324.8,3324.7,0.2]
[1722425926001,3.72025979,3324.8,3324.7,0.2]
[1722425926158,1.11,3324.8,3324.7,0.2]
[1722425926559,3.72025979,3324.8,3324.7,0.2]
[1722425927164,2.61025979,3324.8,3324.7,0.2]
[1722425927508,3.72012286,3324.8,3324.7,0.2]
[1722425928211,1.11,3324.8,3324.7,0.2]
[1722425928504,3.72012286,3324.8,3324.7,0.2]
[1722425929568,4.09213515,3324.8,3324.7,0.2]
[1722425929902,1.48201229,3324.8,3324.7,0.2]
[1722425932418,1.11,3324.8,3324.7,0.2]
[1722425932768,3.72064911,3324.8,3324.7,0.2]
[1722425933276,1.11,3324.8,3324.7,0.2]
[1722425934671,3.72074959,3324.8,3324.7,0.2]
[1722425935872,1.11,3324.8,3324.7,0.2]
[1722425936462,3.72074959,3324.8,3324.7,0.2]
[1722425937261,3.72092609,3324.8,3324.7,0.2]
[1722425937663,1.11,3324.8,3324.7,0.2]
[1722425937873,3.72092609,3324.8,3324.7,0.2]
[1722425938664,3.72096174,3324.8,3324.7,0.2]
[1722425938868,4.34196791,3324.8,3324.7,0.2]
[1722425940174,1.73100617,3324.8,3324.7,0.2]
[1722425941375,0.62100617,3324.8,3323.9,2.55026535]
[1722425941675,1.11,3324.8,3324.7,0.2]
[1722425941874,3.13405377,3325.0,3324.7,0.2]
[1722425942078,2.61090618,3325.0,3324.7,0.2]
[1722425942378,7.48,3325.1,3324.9,2.4434]
[1722425942541,3.72090618,3325.2,3324.9,2.4434]
[1722425942542,2.20997244,3325.0,3324.9,2.4434]
[1722425942742,3.72090618,3325.2,3324.9,2.4434]
[1722425943077,1.11,3325.0,3324.9,2.4434]
[1722425943233,3.72090618,3325.0,3324.9,5.49241288]
[1722425943774,3.72076381,3325.0,3324.9,5.49241288]
[1722425944074,3.72076381,3325.0,3324.9,2.4434]
[1722425944369,7.6268947,3325.7,3324.9,2.4434]
[1722425944370,3.72076381,3325.2,3324.9,2.4434]
[1722425946869,3.72089811,3325.2,3324.7,35.4]
[1722425947035,2.21028404,3324.8,3324.7,35.4]
[1722425947492,2.20915405,3324.8,3324.7,35.4]
[1722425947780,2.20915405,3324.8,3324.7,38.44901288]
[1722425948143,3.72089811,3325.0,3324.7,38.44901288]
[1722425948339,1.11,3324.8,3324.7,38.44901288]
[1722425948778,1.11,3324.8,3324.7,0.4]
[1722425949734,3.72089811,3324.8,3324.7,0.6]
[1722425950005,1.11,3324.8,3324.7,0.6]